[Event "44th Chess Olympiad Women 2022"]
[Site "Chennai"]
[Date "2022.08.06"]
[Round "8.8"]
[White "Worek, Joanna"]
[Black "Krush, Irina"]
[Result "1/2-1/2"]
[WhiteElo "2280"]
[BlackElo "2430"]
[Annotator "TA"]
[PlyCount "70"]
[EventDate "2022.??.??"]
[TimeControl "60"]

{[%evp 14,70,30,31,29,24,31,10,20,5,20,-27,-7,-18,-16,-35,-11,-36,-37,-38,0,14,
0,0,43,37,46,31,31,31,31,31,31,31,31,31,35,31,79,31,31,31,31,31,47,37,64,55,67,
47,95,75,73,76,89,58,82,50,76]} 1. e4 {[%emt 0:00:02]} c5 {[%emt 0:00:08]} 2.
Nf3 {[%emt 0:00:06]} e6 {[%emt 0:00:08]} 3. d4 {[%emt 0:02:07]} cxd4 {[%emt 0:
00:00]} 4. Nxd4 {[%emt 0:00:04]} a6 {[%emt 0:00:11]} 5. c4 {[%emt 0:01:43]} Nf6
{[%emt 0:03:59]} 6. Nc3 {[%emt 0:02:25]} Bb4 {[%emt 0:01:01]} 7. Bd3 {[%emt 0:
00:00] 7.Bd3 has become a bit dusty these days.} Bxc3+ {[%emt 0:09:26]} 8. bxc3
{[%emt 0:00:02] Strongly threatening e5.} d6 {[%emt 0:00:11] B41: Sicilian:
Kan Variation: 5 c4.} 9. O-O {[%emt 0:02:55]} Nbd7 {[%emt 0:00:49][%cal Yb8d7,
Yd7f8,Yf8e6,Ye6c5]} 10. Re1 {[%emt 0:06:23] [#]} O-O $146 {[%emt 0:00:00] The
position is equal.} ({Predecessor:} 10... Qc7 11. f4 e5 12. Nf5 O-O 13. Bc2
Qxc4 14. Bb3 Qxc3 15. Ba3 Nc5 16. Ne7+ Kh8 17. Qxd6 {0-1 (27) Ratajczyk,R 
(1880)-Krueger,N (2121) Lubawka 2008}) 11. Ba3 {[%emt 0:06:50]} Qc7 {[%emt 0:
00:00]} 12. Nb3 {[%emt 0:01:39]} (12. e5 $142 Nxe5 {[#]} 13. Nxe6 $1 Bxe6 14.
Bxd6 $1 Qxd6 15. Bxh7+ $1 Nxh7 16. Qxd6 Nxc4 17. Qb4) 12... e5 {[%emt 0:05:47]}
13. Rb1 {[%emt 0:05:49]} Rd8 {[%emt 0:02:01]} 14. Bf1 {[%emt 0:06:55]} Nf8 {
[%emt 0:06:27]} 15. Qe2 {[%emt 0:10:32]} b6 {[%emt 0:01:24]} 16. f3 {[%emt 0:
00:00]} a5 {[%emt 0:04:14]} (16... Be6 $15) 17. Na1 $11 {[%emt 0:00:22][%cal
Yb3a1,Ya1c2,Yc2e3]} Ba6 {[%emt 0:01:31]} 18. Nc2 {[%emt 0:00:15]} Ne6 {[%emt 0:
08:42]} 19. Ne3 {[%emt 0:01:09]} Nc5 {[%emt 0:00:17]} 20. Qf2 {[%emt 0:02:26]}
Bc8 {[%emt 0:02:14]} 21. Red1 {[%emt 0:02:51]} Be6 {[%emt 0:00:00]} 22. Qc2 {
[%emt 0:08:32]} Rab8 {[%emt 0:03:46]} 23. Rd2 {[%emt 0:02:39]} h6 {[%emt 0:03:
03]} 24. Rdd1 {[%emt 0:03:52]} Kh8 {[%emt 0:06:17]} 25. Kh1 {[%emt 0:01:20]}
Ng8 {[%emt 0:01:17]} (25... Bd7 $14 {is more appropriate.}) 26. Qf2 {[%emt 0:
00:43]} (26. Nd5 $16 Bxd5 27. cxd5) 26... Ne7 {[%emt 0:00:49]} 27. Rb5 {
[%emt 0:02:29]} Rf8 {[%emt 0:07:30]} 28. Qd2 {[%emt 0:02:28]} Rbd8 {[%emt 0:01:
22]} 29. Rdb1 {[%emt 0:00:36]} Nc8 {[%emt 0:08:31]} 30. Qc2 {[%emt 0:00:19]}
Qe7 {[%emt 0:01:14]} 31. R5b2 {[%emt 0:05:56]} g6 {[%emt 0:00:00]} (31... Qg5
$14 32. Re1 f6) 32. Bxc5 {[%emt 0:03:33]} dxc5 {[%emt 0:01:11]} 33. Nd5 {
[%emt 0:00:06]} Qg5 {[%emt 0:02:40]} 34. Qc1 {[%emt 0:04:26]} Kg7 {[%emt 0:05:
57]} 35. Kg1 {[%emt 0:02:30]} Rd6 {[%emt 0:02:08] Weighted Error Value:
White=0.12 (very precise) /Black=0.12 (very precise)} 1/2-1/2

[Event "44th Chess Olympiad Women 2022"]
[Site "Chennai"]
[Date "2022.08.06"]
[Round "8.8"]
[White "Yip, Carissa"]
[Black "Petrova, Kristyna"]
[Result "1-0"]
[WhiteElo "2416"]
[BlackElo "2238"]
[Annotator "TA"]
[PlyCount "187"]
[EventDate "2022.??.??"]
[TimeControl "60"]

{[%evp 16,187,15,17,43,19,17,5,30,0,34,6,6,11,19,9,13,4,84,80,81,80,78,79,77,
82,92,77,82,77,74,74,81,81,82,82,91,75,75,70,82,73,108,82,108,108,108,82,91,82,
108,108,122,115,117,102,115,113,162,194,186,195,157,174,171,172,184,114,281,
276,256,199,182,185,195,196,189,163,162,160,160,145,189,189,189,48,243,227,518,
492,990,770,2089,1458,1435,10248,11521,10735,6731,5964,3678,3113,7337,7040,
29952,29952,29954,29947,29962,0,29952,1610,1543,0,29940,1161,29958,29961,29963,
29964,29963,29965,29964,29965,29966,29967,29966,29967,29966,29967,29969,29970,
29970,29965,29964,29966,29969,29970,29970,29971,29971,29971,29971,29972,29972,
29973,29973,29973,29973,29972,29973,29972,29971,29972,29973,29974,29974,29976,
29976,29977,29977,29972,29976,29975,29976,29977,29978,29979,29979,29980,29981,
29982,29982,29971]} 1. e4 {[%emt 0:00:02]} e5 {[%emt 0:00:06]} 2. Nf3 {[%emt 0:
00:00]} Nf6 {[%emt 0:00:06]} 3. Nxe5 {[%emt 0:04:44]} d6 {[%emt 0:00:14]} 4.
Nf3 {[%emt 0:00:03]} Nxe4 {[%emt 0:00:10]} 5. Nc3 {[%emt 0:00:06]} Nxc3 {
[%emt 0:00:18]} 6. dxc3 {[%emt 0:00:04]} Be7 {[%emt 0:00:14]} 7. Bf4 {[%emt 0:
00:00]} Nc6 {[%emt 0:01:35]} 8. Qd2 {[%emt 0:01:41]} Be6 {[%emt 0:06:00]} 9.
O-O-O {[%emt 0:00:18]} a6 {[%emt 0:04:36] C42: Petroff Defence: 3 Nxe5 and
unusual White 3rd moves.} (9... Bxa2 $2 10. b3 $16) 10. Nd4 {[%emt 0:05:27]}
Nxd4 {[%emt 0:01:44]} (10... Bxa2 $2 11. b3 $16) 11. cxd4 {[%emt 0:00:09] [#]}
d5 $146 {[%emt 0:04:38] The position is equal.} ({Don't take} 11... Bxa2 12. b3
$16) ({Predecessor:} 11... c6 12. Kb1 O-O 13. Bd3 b5 14. h4 a5 15. Qe2 Qd7 16.
Bg5 Rfe8 17. Qe4 f5 {0-1 (36) Schneider Zinner,H (2357)-Kummer,H (2335)
Austria 2006}) 12. Qe3 {[%emt 0:02:11]} Bd6 {[%emt 0:18:08]} 13. Be5 {[%emt 0:
00:00]} O-O {[%emt 0:05:48]} 14. Bd3 {[%emt 0:09:00]} Re8 {[%emt 0:13:14]} 15.
Rde1 {[%emt 0:12:30]} f6 {[%emt 0:03:58]} 16. Bg3 {[%emt 0:02:40]} Bg4 {
[%emt 0:09:21]} (16... Qd7 $11 {remains equal.}) 17. Qxe8+ $16 {[%emt 0:03:43]}
Qxe8 {[%emt 0:00:01]} 18. Rxe8+ {[%emt 0:00:06]} Rxe8 {[%emt 0:00:02]} 19. Bxd6
{[%emt 0:00:06]} cxd6 {[%emt 0:00:02] Endgame KRB-KRB} 20. Kd2 {[%emt 0:00:12]}
Bh5 {[%emt 0:01:23]} 21. c3 {[%emt 0:02:09]} Kf7 {[%emt 0:00:00]} 22. b4 {
[%emt 0:05:19]} Bg6 {[%emt 0:05:15]} 23. Be2 {[%emt 0:02:08]} Be4 {[%emt 0:02:
29]} 24. Rg1 {[%emt 0:01:24]} Ra8 {[%emt 0:08:44]} 25. Bd1 {[%emt 0:03:54]} Bf5
{[%emt 0:02:06]} 26. Bb3 {[%emt 0:03:11]} Be6 {[%emt 0:00:00]} 27. a4 {[%emt 0:
00:36]} b6 {[%emt 0:01:44]} 28. f4 {[%emt 0:04:10][%cal Yf4f5] Threatens to
win with f5!} Ke7 {[%emt 0:02:02]} 29. g4 {[%emt 0:00:50]} h6 {[%emt 0:00:22]}
30. Re1 {[%emt 0:06:21]} Kd7 {[%emt 0:00:04]} 31. Bd1 {[%emt 0:00:31]} Bf7 {
[%emt 0:02:42]} 32. h4 {[%emt 0:01:34]} Re8 {[%emt 0:00:00]} 33. Be2 {[%emt 0:
00:27]} Ra8 {[%emt 0:00:26]} 34. g5 {[%emt 0:01:28]} hxg5 {[%emt 0:00:31]} 35.
Bg4+ {[%emt 0:00:12]} Kd8 {[%emt 0:00:17]} (35... Kc6 $2 36. Re7 (36. hxg5 Re8
$16) 36... Rf8 37. fxg5 $18) 36. hxg5 {[%emt 0:00:29] White is more active.}
Ra7 {[%emt 0:02:42]} (36... fxg5 $16 37. fxg5 a5) 37. gxf6 $18 {[%emt 0:01:58]}
gxf6 {[%emt 0:00:02]} 38. Rh1 $1 {[%emt 0:00:11]} Re7 {[%emt 0:03:11]} 39. Rh8+
{[%emt 0:05:36]} Re8 {[%emt 0:00:12]} 40. Rh7 {[%emt 0:00:11]} Re7 {[%emt 0:01:
01]} 41. Bf3 {[%emt 0:36:10]} (41. Rh6 $18) 41... Be8 $2 {[%emt 0:06:34]} (
41... f5 $16 42. Rh6 Kc7) 42. Rh8 {[%emt 0:00:00]} Kc7 {[%emt 0:00:09]} 43.
Bxd5 {[%emt 0:00:00]} Bxa4 {[%emt 0:01:18] [#]} 44. Ra8 $1 {[%emt 0:00:00]} a5
{[%emt 0:01:44]} 45. bxa5 {[%emt 0:00:00]} bxa5 {[%emt 0:00:04]} 46. Ra7+ {
[%emt 0:00:00]} Kd8 {[%emt 0:00:11]} 47. Rxa5 {[%emt 0:00:00]} Bd7 {[%emt 0:01:
04]} 48. Ra8+ {[%emt 0:00:00]} Kc7 {[%emt 0:00:00] [#]} 49. Rf8 $1 {[%emt 0:00:
00]} f5 {[%emt 0:03:38]} 50. Bg2 {[%emt 0:00:00]} (50. Rf7 $18 Rxf7 51. Bxf7)
50... Rg7 {[%emt 0:00:41]} ({Black should try} 50... Rh7 $14) 51. Bh3 {[%emt 0:
00:00]} Rg3 $2 {[%emt 0:07:39]} (51... d5 {was necessary.} 52. Bxf5 Bb5) 52.
Bxf5 {[%emt 0:00:00] Black must now prevent Rf7.} Bxf5 {[%emt 0:00:04]} (52...
Bc6 $142 53. c4 d5 54. Rf7+ Kb8) 53. Rxf5 {[%emt 0:00:00] KR-KR} Rf3 {[%emt 0:
00:03]} 54. Rf7+ {[%emt 0:00:00]} Kd8 {[%emt 0:00:38]} 55. d5 {[%emt 0:00:00]}
Ke8 {[%emt 0:00:47]} 56. Rf6 {[%emt 0:00:00]} Kd7 {[%emt 0:00:34]} 57. Kc2 {
[%emt 0:00:00]} Kc7 {[%emt 0:05:12]} 58. Kb3 {[%emt 0:00:00] Strongly
threatening f5.} Rf2 {[%emt 0:00:22]} 59. Kc4 {[%emt 0:00:00] White wants to
mate with Kd4.} Rf1 {[%emt 0:00:13]} 60. Kd4 {[%emt 0:00:00]} Rf3 {[%emt 0:02:
35]} 61. Rf7+ {[%emt 0:00:00]} Kd8 {[%emt 0:00:00]} 62. Rf6 $2 {[%emt 0:00:00]}
(62. Ke4 {mates} Rxc3 63. Kf5 Re3 64. Kf6 Re4 65. f5 Rd4 66. Ke6 Rg4 67. Ra7
Re4+ 68. Kxd6) 62... Kd7 $2 {[%emt 0:00:12]} (62... Kc7 $11 63. Rf7+ Kd8) 63.
Kc4 {[%emt 0:00:00]} (63. Ke4 $142 Rxc3 64. Rf7+ Ke8 65. Rb7 Kd8 66. Kf5 Rf3
67. Rf7 Ke8 68. Rg7) 63... Kc7 {[%emt 0:01:48]} 64. Kd4 {[%emt 0:00:00]} (64.
Rf7+ $18 Kd8 65. Kd4) 64... Kd7 {[%emt 0:00:06]} 65. c4 {[%emt 0:00:00]} (65.
Ke4 $142 Rxc3 66. Rf7+ Ke8 67. Ra7 Kd8 68. Kf5 Rf3 69. Rf7 Ke8 70. Rh7) 65...
Rf1 {[%emt 0:01:32]} 66. Ke4 {[%emt 0:00:00] White mates.} Rc1 {[%emt 0:02:15]}
67. Rf7+ {[%emt 0:00:00]} Ke8 {[%emt 0:00:18]} 68. Rc7 {[%emt 0:00:00]} Kd8 {
[%emt 0:00:10]} 69. Rc6 {[%emt 0:00:00]} Ke7 {[%emt 0:00:18]} 70. Kf5 {[%emt 0:
00:00]} Rc2 {[%emt 0:00:00]} 71. Rc7+ {[%emt 0:01:56]} Kd8 {[%emt 0:00:09]} 72.
Rf7 {[%emt 0:00:05]} Rxc4 {[%emt 0:00:18]} 73. Ke6 {[%emt 0:00:03]} Ke8 {
[%emt 0:00:22]} 74. Rf5 {[%emt 0:01:17]} Ra4 {[%emt 0:01:38]} 75. Rf6 {[%emt 0:
01:06]} Ra7 {[%emt 0:00:00]} 76. Rh6 {[%emt 0:02:16][%cal Rh6h8]} Kf8 {[%emt 0:
00:52]} 77. Rh8+ {[%emt 0:00:09]} Kg7 {[%emt 0:00:02]} 78. Rh1 {[%emt 0:00:06]}
Ra4 {[%emt 0:00:00]} 79. Rg1+ {[%emt 0:00:36]} Kf8 {[%emt 0:00:09]} 80. f5 {
[%emt 0:00:57]} Re4+ {[%emt 0:00:22]} 81. Kxd6 {[%emt 0:00:04]} Kf7 {[%emt 0:
00:35]} 82. Rg6 {[%emt 0:01:09]} Rf4 {[%emt 0:00:36]} 83. Ke5 {[%emt 0:00:05]}
Rf1 {[%emt 0:00:00]} 84. d6 {[%emt 0:03:25]} Re1+ {[%emt 0:00:36]} 85. Kd5 {
[%emt 0:00:03]} Rd1+ {[%emt 0:00:22]} 86. Kc6 {[%emt 0:00:07]} Rc1+ {[%emt 0:
00:17]} 87. Kd7 {[%emt 0:00:46]} Rf1 {[%emt 0:01:54]} 88. Rg5 {[%emt 0:00:10]}
Rf2 {[%emt 0:00:00]} 89. Rh5 {[%emt 0:00:18]} Rf1 {[%emt 0:00:08]} 90. Kd8 {
[%emt 0:01:22]} Rd1 {[%emt 0:01:12]} 91. d7 {[%emt 0:02:51]} Rc1 {[%emt 0:00:
07]} 92. Rh6 {[%emt 0:00:00]} Rc5 {[%emt 0:00:57]} 93. Rb6 {[%emt 0:00:57]} Rc1
{[%emt 0:00:29]} 94. Rb7 {[%emt 0:00:24] Weighted Error Value: White=0.15 
(very precise) /Black=0.33} 1-0

[Event "44th Chess Olympiad Women 2022"]
[Site "Chennai"]
[Date "2022.08.06"]
[Round "8.9"]
[White "Bach, Ngoc Thuy Duong"]
[Black "Wagner, Dinara"]
[Result "1/2-1/2"]
[WhiteElo "2192"]
[BlackElo "2341"]
[Annotator "RC"]
[PlyCount "126"]
[EventDate "2022.??.??"]
[TimeControl "60"]

1. d4 {[%emt 0:00:08]} Nf6 {[%emt 0:00:03]} 2. c4 {[%emt 0:00:26]} e6 {[%emt 0:
00:00]} 3. Nf3 {[%emt 0:00:42]} d5 {[%emt 0:00:53]} 4. Nc3 {[%emt 0:00:45]} Bb4
{[%emt 0:00:04]} 5. Bg5 {[%emt 0:01:08]} h6 {[%emt 0:10:40]} 6. Bxf6 {[%emt 0:
00:00]} Qxf6 {[%emt 0:01:04]} 7. Qb3 {[%emt 0:00:23]} Bxc3+ {[%emt 0:08:46]} 8.
Qxc3 {[%emt 0:00:38]} Nc6 {[%emt 0:20:08]} 9. e3 {[%emt 0:04:19]} O-O {[%emt 0:
00:00]} 10. Be2 {[%emt 0:00:41]} Re8 {[%emt 0:05:20]} 11. O-O {[%emt 0:02:30]}
Bd7 {[%emt 0:05:50]} 12. b4 {[%emt 0:14:28]} dxc4 {[%emt 0:07:10]} 13. Qxc4 {
[%emt 0:08:43]} a6 {[%emt 0:01:33]} 14. a4 {[%emt 0:02:27]} Rec8 {[%emt 0:00:
00]} 15. b5 {[%emt 0:04:36]} axb5 {[%emt 0:03:24]} 16. axb5 {[%emt 0:00:13]}
Na5 {[%emt 0:00:48]} 17. Qb4 {[%emt 0:04:27]} b6 {[%emt 0:00:04]} 18. Ne5 {
[%emt 0:00:18]} Be8 {[%emt 0:00:09]} 19. Bf3 {[%emt 0:00:31]} Rab8 {[%emt 0:00:
00]} 20. Rfc1 {[%emt 0:05:08]} Qd8 {[%emt 0:02:49]} 21. h3 {[%emt 0:15:03]} Qd6
{[%emt 0:01:55]} 22. Rab1 {[%emt 0:01:43]} f6 {[%emt 0:06:20]} 23. Nc4 {
[%emt 0:06:33]} Qxb4 {[%emt 0:00:20]} 24. Rxb4 {[%emt 0:00:07]} Nxc4 {[%emt 0:
00:00]} 25. Rcxc4 {[%emt 0:00:36]} Kf8 {[%emt 0:01:05]} 26. Rc1 {[%emt 0:04:40]
} Ke7 {[%emt 0:00:21]} 27. d5 {[%emt 0:02:07]} e5 {[%emt 0:03:13]} 28. Bg4 {
[%emt 0:04:23]} Bd7 {[%emt 0:00:07]} 29. Bxd7 {[%emt 0:00:27]} Kxd7 {[%emt 0:
00:00]} 30. Rg4 {[%emt 0:02:36]} Rg8 {[%emt 0:00:36]} 31. Rc6 {[%emt 0:00:40]}
Ra8 {[%emt 0:01:47]} 32. e4 {[%emt 0:03:28]} Ra4 {[%emt 0:09:57]} 33. f3 {
[%emt 0:00:45]} Raa8 {[%emt 0:00:09]} 34. Kh2 {[%emt 0:01:57]} Raf8 {[%emt 0:
00:00]} 35. f4 {[%emt 0:00:00]} exf4 {[%emt 0:01:02]} 36. Rxf4 {[%emt 0:00:00]}
Re8 {[%emt 0:00:14]} 37. Rc4 {[%emt 0:00:36]} Re7 {[%emt 0:00:21]} 38. Rf3 {
[%emt 0:00:10]} Ra8 {[%emt 0:00:34]} 39. Rfc3 {[%emt 0:00:14]} Kd8 {[%emt 0:00:
00]} 40. Rc6 {[%emt 0:01:11]} Ra4 {[%emt 0:00:00]} 41. d6 {[%emt 0:30:37]} cxd6
{[%emt 0:05:15]} 42. Rxd6+ {[%emt 0:00:00]} Rd7 {[%emt 0:05:41]} 43. Rxb6 {
[%emt 0:00:00]} Rxe4 {[%emt 0:01:04]} 44. Rb8+ {[%emt 0:00:00]} Ke7 {[%emt 0:
00:00]} 45. b6 {[%emt 0:00:00]} Rb4 {[%emt 0:01:12]} 46. Rc6 {[%emt 0:00:00]}
h5 {[%emt 0:04:17]} 47. Rg8 {[%emt 0:00:00]} Kf7 {[%emt 0:00:53]} 48. Ra8 {
[%emt 0:00:00]} Rd5 {[%emt 0:07:47]} 49. Rc7+ {[%emt 0:00:00]} Ke6 {[%emt 0:00:
00]} 50. Re8+ {[%emt 0:00:00]} Kf5 {[%emt 0:01:44]} 51. Rxg7 {[%emt 0:00:00]}
Rxb6 {[%emt 0:00:20]} 52. Rh7 {[%emt 0:00:00]} Kf4 {[%emt 0:01:19]} 53. Re2 {
[%emt 0:00:00]} Kg5 {[%emt 0:01:36]} 54. h4+ {[%emt 0:00:00]} Kf4 {[%emt 0:00:
00]} 55. Rf2+ {[%emt 0:00:00]} Ke4 {[%emt 0:00:32]} 56. Rh6 {[%emt 0:00:00]}
Rf5 {[%emt 0:02:17]} 57. Rxf5 {[%emt 0:00:16]} Kxf5 {[%emt 0:00:02]} 58. Kh3 {
[%emt 0:00:15]} Rb3+ {[%emt 0:01:06]} 59. g3 {[%emt 0:00:19]} Ke4 {[%emt 0:00:
00]} 60. Rxf6 {[%emt 0:01:37]} Rb2 {[%emt 0:00:42]} 61. Rg6 {[%emt 0:00:51]}
Rb5 {[%emt 0:00:27]} 62. Rg5 {[%emt 0:00:50]} Rxg5 {[%emt 0:00:24]} 63. hxg5 {
[%emt 0:00:08]} Ke5 {[%emt 0:00:02]} 1/2-1/2

[Event "44th Chess Olympiad Women 2022"]
[Site "Chennai"]
[Date "2022.08.06"]
[Round "8.9"]
[White "Heinemann, Josefine"]
[Black "Hoang, Thi Bao Tram"]
[Result "1/2-1/2"]
[WhiteElo "2321"]
[BlackElo "2288"]
[Annotator "RC"]
[PlyCount "87"]
[EventDate "2022.??.??"]
[TimeControl "60"]

1. e4 {[%emt 0:00:03]} c6 {[%emt 0:00:28]} 2. d4 {[%emt 0:00:06]} d5 {[%emt 0:
00:00]} 3. e5 {[%emt 0:00:08]} Bf5 {[%emt 0:01:23]} 4. Nf3 {[%emt 0:00:07]} e6
{[%emt 0:00:39]} 5. Be2 {[%emt 0:00:04]} Ne7 {[%emt 0:01:24]} 6. c3 {[%emt 0:
00:00]} Nd7 {[%emt 0:01:24]} 7. O-O {[%emt 0:00:57]} Nc8 {[%emt 0:02:04]} 8.
Ne1 {[%emt 0:01:21]} h5 {[%emt 0:11:07]} 9. Nc2 {[%emt 0:05:11]} Bg6 {[%emt 0:
00:00]} 10. Bd3 {[%emt 0:03:00]} Bxd3 {[%emt 0:02:22]} 11. Qxd3 {[%emt 0:00:15]
} g6 {[%emt 0:00:30]} 12. Nd2 {[%emt 0:04:16]} Be7 {[%emt 0:02:21]} 13. Nf3 {
[%emt 0:05:01]} Ncb6 {[%emt 0:06:11]} 14. b3 {[%emt 0:04:41]} c5 {[%emt 0:00:
00]} 15. Ne3 {[%emt 0:02:17]} Rc8 {[%emt 0:01:30]} 16. Bd2 {[%emt 0:02:57]} Kf8
{[%emt 0:00:55]} 17. Qe2 {[%emt 0:02:48]} Kg7 {[%emt 0:00:43]} 18. a4 {[%emt 0:
00:00]} cxd4 {[%emt 0:01:03]} 19. cxd4 {[%emt 0:01:05]} Nb8 {[%emt 0:00:10]}
20. g3 {[%emt 0:10:54]} Nc6 {[%emt 0:00:25]} 21. h4 {[%emt 0:03:24]} Nd7 {
[%emt 0:02:06]} 22. Ng2 {[%emt 0:03:33]} Qb6 {[%emt 0:08:31]} 23. Qd3 {[%emt 0:
00:00]} Nb4 {[%emt 0:12:36]} 24. Bxb4 {[%emt 0:06:22]} Qxb4 {[%emt 0:00:25]}
25. Rfc1 {[%emt 0:07:15]} Rc6 {[%emt 0:02:55]} 26. Rc2 {[%emt 0:02:06]} Rhc8 {
[%emt 0:02:10]} 27. Rac1 {[%emt 0:00:30]} Nb8 {[%emt 0:02:15]} 28. Nf4 {
[%emt 0:03:06]} Qa3 {[%emt 0:08:48]} 29. Ne2 {[%emt 0:02:39]} a6 {[%emt 0:00:
00]} 30. Kg2 {[%emt 0:00:42]} Rc4 {[%emt 0:02:41]} 31. Rc3 Rxc3 {[%emt 0:00:30]
} 32. Rxc3 {[%emt 0:00:34]} Rxc3 {[%emt 0:00:30]} 33. Qxc3 {[%emt 0:00:30]} Nc6
{[%emt 0:00:01]} 34. Qc2 {[%emt 0:03:15]} Qa2 {[%emt 0:08:28]} 35. Nc1 Qa1 {
[%emt 0:00:00]} 36. Ne2 {[%emt 0:02:48]} Bd8 {[%emt 0:00:30]} 37. Qd2 {[%emt 0:
00:00]} Qb1 {[%emt 0:02:10]} 38. Qe3 {[%emt 0:01:48]} Qc2 {[%emt 0:00:43]} 39.
Ne1 {[%emt 0:02:56]} Qd1 {[%emt 0:01:18]} 40. Nf3 {[%emt 0:00:53]} Qc2 {
[%emt 0:01:14]} 41. Ne1 {[%emt 0:30:11]} Qb1 {[%emt 0:30:26]} 42. Nf3 {[%emt 0:
00:00]} Ba5 {[%emt 0:03:52]} 43. Ng5 {[%emt 0:04:40]} Bd8 {[%emt 0:00:00]} 44.
Nf3 {[%emt 0:02:38]} 1/2-1/2

[Event "44th Chess Olympiad Women 2022"]
[Site "Chennai"]
[Date "2022.08.06"]
[Round "8.9"]
[White "Schneider, Jana"]
[Black "Nguyen, Thien Ngan"]
[Result "1-0"]
[WhiteElo "2342"]
[BlackElo "1912"]
[Annotator "RC"]
[PlyCount "113"]
[EventDate "2022.??.??"]
[TimeControl "60"]

1. e4 {[%emt 0:00:06]} e5 {[%emt 0:00:09]} 2. Nf3 {[%emt 0:00:07]} Nc6 {
[%emt 0:00:09]} 3. Bb5 {[%emt 0:00:09]} a6 {[%emt 0:00:10]} 4. Ba4 {[%emt 0:00:
00]} Nf6 {[%emt 0:00:13]} 5. O-O {[%emt 0:00:14]} Be7 {[%emt 0:00:29]} 6. Re1 {
[%emt 0:00:17]} b5 {[%emt 0:00:10]} 7. Bb3 {[%emt 0:00:07]} d6 {[%emt 0:00:09]}
8. c3 {[%emt 0:00:16]} O-O {[%emt 0:00:24]} 9. h3 {[%emt 0:00:15]} Na5 {
[%emt 0:00:19]} 10. Bc2 {[%emt 0:00:09]} c5 {[%emt 0:00:09]} 11. d4 {[%emt 0:
00:00]} Qc7 {[%emt 0:00:12]} 12. d5 {[%emt 0:00:18]} Nb7 {[%emt 0:00:43]} 13.
b3 {[%emt 0:09:02]} Bd7 {[%emt 0:03:08]} 14. Nbd2 {[%emt 0:00:49]} g6 {[%emt 0:
00:00]} 15. Nf1 {[%emt 0:00:35]} Nh5 {[%emt 0:00:38]} 16. Bh6 {[%emt 0:00:39]}
Ng7 {[%emt 0:01:07]} 17. g4 {[%emt 0:00:49]} f6 {[%emt 0:02:12]} 18. Ng3 {
[%emt 0:01:26]} Nd8 {[%emt 0:02:14]} 19. Be3 Nf7 {[%emt 0:08:28]} 20. Kh1 {
[%emt 0:08:38]} c4 {[%emt 0:00:06]} 21. b4 {[%emt 0:02:57]} a5 {[%emt 0:03:36]}
22. a4 {[%emt 0:06:09]} Rfb8 {[%emt 0:25:03]} 23. axb5 {[%emt 0:05:48]} Bxb5 {
[%emt 0:04:08]} 24. bxa5 {[%emt 0:04:30]} Rxa5 {[%emt 0:04:44]} 25. Rxa5 {
[%emt 0:00:20]} Qxa5 {[%emt 0:00:10]} 26. Qa1 {[%emt 0:00:09]} Bd8 {[%emt 0:00:
00]} 27. Qxa5 {[%emt 0:01:14]} Bxa5 {[%emt 0:00:10]} 28. Ne2 {[%emt 0:08:06]}
Ne8 {[%emt 0:15:36]} 29. Rb1 {[%emt 0:05:30]} Bc7 {[%emt 0:09:38]} 30. Nd2 {
[%emt 0:02:06]} Nd8 {[%emt 0:02:52]} 31. Kg2 {[%emt 0:09:31]} Kf8 {[%emt 0:00:
00]} 32. Rb2 {[%emt 0:02:41]} Rb7 {[%emt 0:02:46]} 33. Bb1 {[%emt 0:01:31]} Ba6
{[%emt 0:01:43]} 34. Ra2 {[%emt 0:00:20]} Bb5 {[%emt 0:00:13]} 35. Ra3 {
[%emt 0:01:48]} Bb6 {[%emt 0:02:20]} 36. Bxb6 {[%emt 0:01:18]} Rxb6 {[%emt 0:
00:00]} 37. Ba2 {[%emt 0:00:27]} f5 {[%emt 0:00:59]} 38. gxf5 {[%emt 0:07:35]}
gxf5 {[%emt 0:00:01]} 39. exf5 {[%emt 0:00:56]} Nf6 {[%emt 0:00:30]} 40. Bxc4 {
[%emt 0:11:04]} Nxd5 {[%emt 0:01:06]} 41. Bxd5 {[%emt 0:30:38]} Bxe2 {[%emt 0:
00:00]} 42. Ra8 {[%emt 0:00:00]} Ke8 {[%emt 0:12:44]} 43. f6 {[%emt 0:00:00]}
Bh5 {[%emt 0:00:55]} 44. Nc4 {[%emt 0:00:00]} Rb1 {[%emt 0:00:14]} 45. Nxd6+ {
[%emt 0:00:00]} Kd7 {[%emt 0:00:14]} 46. f7 {[%emt 0:00:00]} Nxf7 {[%emt 0:00:
00]} 47. Nxf7 {[%emt 0:00:00]} Ke7 {[%emt 0:01:42]} 48. Ra7+ {[%emt 0:00:00]}
Kf6 {[%emt 0:00:13]} 49. Ra6+ {[%emt 0:00:00]} Kf5 {[%emt 0:00:41]} 50. Nh6+ {
[%emt 0:00:00]} Kf4 {[%emt 0:00:57]} 51. h4 {[%emt 0:00:00]} e4 {[%emt 0:01:01]
} 52. Rf6+ {[%emt 0:00:00]} Ke5 {[%emt 0:00:09]} 53. Rf5+ {[%emt 0:00:00]} Kd6
{[%emt 0:00:21]} 54. Rxh5 {[%emt 0:00:00]} Re1 {[%emt 0:00:22]} 55. c4 {
[%emt 0:00:00]} Re2 {[%emt 0:00:25]} 56. Nf5+ {[%emt 0:00:00]} Kc5 {[%emt 0:00:
00]} 57. Ng3 {[%emt 0:00:00]} 1-0